bitfinex/quotes_ETHUSD_20241217
["timestamp","ask_amount","ask_price","bid_price","bid_amount"]
[1734410171695,7.39016258,4001.8,4000.9,0.55]
[1734410171898,7.39016258,4001.8,4001.1,0.55]
[1734410172299,7.39016258,4001.8,4001.2,0.05674208]
[1734410174228,5.98729085,4001.7,4001.2,0.05674208]
[1734410174457,6.71832962,4001.6,4000.7,0.55]
[1734410174664,6.71832962,4001.6,4001.3,0.05692471]
[1734410174868,6.71832962,4001.6,4000.7,0.55]
[1734410175162,6.71832962,4001.6,4001.4,0.05691136]
[1734410175363,6.71832962,4001.6,4000.7,0.55]
[1734410175532,0.7460332,4001.5,4000.7,0.55]
[1734410175735,6.71832962,4001.6,4000.9,0.55]
[1734410176119,6.71832962,4001.6,4001.0,0.05696474]
[1734410176653,0.02986123,4001.5,4001.0,0.05696474]
[1734410177033,6.71832962,4001.6,4001.0,0.05696474]
[1734410177277,0.02986123,4001.5,4001.0,0.05696474]
[1734410177436,0.67481909,4001.4,4001.2,3.0]
[1734410177777,0.7609,4001.3,4001.1,0.0569514]
[1734410177922,0.7609,4001.0,4000.1,1.04117344]
[1734410178119,0.67481909,4000.9,4000.1,1.04117344]
[1734410178454,0.67481909,4000.9,4000.0,0.8027]
[1734410178455,0.67481909,4000.9,4000.0,1.84387344]
[1734410178621,0.67481909,4000.9,4000.0,0.8027]
[1734410178822,0.67481909,4000.9,4000.3,0.12282193]
[1734410179224,6.63224871,4000.9,4000.0,0.8027]
[1734410179429,0.7609,4000.7,3999.8,0.12315036]
[1734410179654,0.02986123,4000.6,3999.6,0.8027]
[1734410179844,5.98729085,4000.6,3999.6,0.8027]
[1734410180082,0.7609,4000.4,3999.6,0.12426213]
[1734410180233,0.02986123,4000.3,3999.6,0.12426213]
[1734410180428,0.02986123,4000.3,3999.4,1.04117344]
[1734410180667,0.02986123,4000.3,3999.3,1.84387344]
[1734410181175,0.02986123,4000.3,3999.4,0.55]
[1734410181745,0.02986123,4000.3,3999.4,3.55]
[1734410181926,0.02986123,4000.3,3999.9,0.55]
[1734410182380,0.74969414,4000.3,3999.9,0.55]
[1734410182580,6.71832962,4000.4,3999.9,0.55]
[1734410186245,0.7609,4000.4,3999.9,0.55]
[1734410186641,0.7609,4000.4,4000.1,0.55]
[1734410186844,6.71832962,4001.2,4000.1,0.55]
[1734410187068,0.90533152,4001.1,4000.2,0.05593286]
[1734410187384,0.90533152,4001.1,4000.0,0.55]
[1734410187690,0.90533152,4001.1,4000.4,3.0]
[1734410188048,0.90533152,4001.1,4000.5,0.05589281]
[1734410188273,6.71832962,4001.2,3999.9,0.8027]
[1734410188274,0.76236611,4001.0,4000.4,3.0]
[1734410188490,0.76236611,4001.0,4000.6,0.05587946]
[1734410188700,0.76236611,4001.0,4000.0,0.55]
[1734410188701,0.76236611,4001.0,4000.5,0.05586767]
[1734410188854,0.76236611,4001.0,4000.2,0.12385329]
[1734410189048,0.76236611,4001.0,4000.6,0.05579902]
[1734410189291,0.7609,4000.8,4000.0,0.55]
[1734410189478,0.7609,4000.8,4000.0,0.67297605]
[1734410189682,0.02986123,4000.7,4000.2,0.55]
[1734410190083,0.7609,4000.6,4000.3,0.05608471]
[1734410190287,0.91478308,4000.6,4000.4,3.0]
[1734410190467,0.91478308,4000.6,4000.4,0.05419763]
[1734410190703,0.91478308,4000.6,3999.5,0.55]
[1734410191058,0.91478308,4000.6,3999.7,0.55]
[1734410191551,0.91478308,4000.6,3999.9,0.55]
[1734410191980,0.91478308,4000.6,4000.0,0.05425639]
[1734410192162,5.95742962,4000.5,4000.0,0.05425639]
[1734410192366,6.64465089,4000.5,4000.4,3.0]
[1734410192561,6.64465089,4000.5,3999.9,0.55]
[1734410192802,5.95742962,4000.5,4000.4,3.05419763]
[1734410192952,5.95742962,4000.5,3999.9,0.55]
[1734410193154,5.95742962,4000.5,4000.0,0.05425104]
[1734410193380,5.95742962,4000.5,3999.9,0.55]
[1734410193583,5.95742962,4000.5,4000.4,3.0]
[1734410193904,5.95742962,4000.5,4000.4,0.05420298]
[1734410194259,5.95742962,4000.5,4000.4,3.0]
[1734410194459,5.95742962,4000.5,4000.4,0.05422812]
[1734410194667,5.95742962,4000.5,4000.1,0.55]
[1734410194995,5.95742962,4000.5,4000.4,0.55]
[1734410195197,0.7609,4001.2,4000.5,0.55]
[1734410195503,0.7609,4001.2,4000.5,3.55]
[1734410195713,0.7609,4001.2,4000.6,0.05420644]
[1734410196067,0.7609,4001.2,4000.7,0.55]
[1734410196264,0.7609,4001.2,4000.7,0.60405736]
[1734410196471,0.02986123,4001.1,4000.7,0.60405736]
[1734410196715,0.02986123,4001.1,4000.7,0.55]
[1734410197030,0.7609,4001.2,4000.7,0.55]
[1734410197193,0.7609,4001.2,4000.4,0.55]
[1734410197510,0.7609,4001.2,4000.8,0.05396359]
[1734410197825,0.7609,4001.2,4000.4,0.55]
[1734410197980,0.7609,4001.2,4000.9,0.05395024]
[1734410198166,0.7609,4001.2,4000.4,0.55]
[1734410198611,0.7609,4001.2,4000.5,0.05400364]
[1734410198909,0.7609,4001.2,4000.6,0.55]
[1734410199217,0.7609,4001.2,4000.7,0.05392165]
[1734410199509,0.7609,4001.0,3999.9,0.7927]
[1734410199729,0.7609,4001.0,4000.6,3.0]
[1734410199877,0.7609,4001.0,3999.9,0.7927]
[1734410200076,0.7609,4001.0,4000.7,0.05392165]
[1734410200275,0.7609,4001.0,3999.9,0.7927]
[1734410200476,0.14357191,4000.9,4000.8,0.05210939]
[1734410200706,0.14357191,4000.9,3999.9,0.7927]
[1734410200922,0.14357191,4000.9,4000.0,0.55]
[1734410201090,0.14357191,4000.9,4000.0,0.60215555]
[1734410201294,5.95742962,4000.8,4000.0,0.60215555]
[1734410201526,6.64361977,4000.8,4000.0,0.60215555]
[1734410202622,0.7609,4000.7,4000.0,0.60215555]
[1734410203143,0.79076123,4000.7,4000.0,0.05215555]
[1734410203490,0.79076123,4000.7,3999.7,0.12805028]
[1734410203741,0.79076123,4000.7,4000.1,0.05219031]
[1734410203883,0.79076123,4000.7,3999.5,0.12316014]
[1734410203884,0.7609,4000.5,3999.5,0.12316014]
[1734410204079,0.79076123,4000.5,4000.2,0.05217696]
[1734410204340,0.7609,4000.1,3999.2,1.04117344]
[1734410204647,0.67183296,4000.0,3999.3,0.05229717]
[1734410204783,6.62926258,4000.0,3998.9,1.80967344]
[1734410204978,5.95742962,4000.0,3999.0,0.05233725]
[1734410205205,5.95742962,4000.0,3999.0,1.09351069]
[1734410205629,5.95742962,4000.0,3999.1,0.55]
[1734410205846,5.95742962,4000.0,3999.1,0.60232389]
[1734410206007,0.67183296,3999.9,3999.1,0.60232389]
[1734410206231,0.67183296,3999.9,3999.2,0.12355402]
[1734410206434,6.62926258,3999.9,3999.2,0.17586455]
[1734410206587,5.95742962,3999.9,3999.2,0.17586455]
[1734410207440,5.95742962,3999.9,3999.2,0.05231053]
[1734410210125,5.95742962,3999.8,3999.2,0.05231053]
[1734410212774,5.95742962,3999.8,3999.3,0.55]
[1734410213065,5.95742962,3999.8,3999.4,0.0537269]
[1734410213272,0.7609,4000.1,3999.4,0.0537269]
[1734410215050,0.7609,4000.1,3999.5,0.7685]
[1734410215258,0.7609,4000.6,3999.5,0.82221354]
[1734410216128,6.71832962,4000.6,3999.6,0.55]
[1734410216327,6.71832962,4000.6,3999.6,1.59117344]
[1734410216672,6.71832962,4000.6,3999.8,0.55]
[1734410217034,6.71832962,4000.6,3999.9,0.0534539]
[1734410217342,0.7609,4000.6,3999.9,0.0534539]
[1734410218226,5.95742962,4000.8,4000.1,0.7685]
[1734410218428,5.95742962,4000.8,4000.2,4.09438614]
[1734410218744,5.95742962,4000.8,4000.3,0.55]
[1734410218948,0.02986123,4000.7,4000.3,0.55]
[1734410219166,5.95742962,4000.8,4000.4,0.053186]
[1734410220273,5.95742962,4000.8,4000.5,0.8212]
[1734410220473,5.95742962,4000.8,4000.5,0.8741816]
[1734410221046,5.95742962,4000.8,4000.5,0.0529816]
[1734410221257,5.95742962,4000.8,4000.3,0.55]
[1734410221458,0.7609,4000.7,4000.6,0.05296825]
[1734410221662,0.7609,4000.7,4000.1,0.12328544]
[1734410222005,0.7609,4000.7,3999.9,1.04117344]
[1734410222162,6.71832962,4000.7,4000.2,0.05302166]
[1734410222360,7.44973688,4000.7,3999.9,1.04117344]
[1734410222576,7.44973688,4000.7,4000.3,0.05238477]
[1734410222741,7.44973688,4000.7,3999.9,1.04117344]
[1734410222946,6.71832962,4000.7,3999.9,1.04117344]
[1734410223192,6.71832962,4000.7,4000.1,0.55]
[1734410223694,6.71832962,4000.7,4000.2,0.05239812]
[1734410224746,0.02986123,4000.6,4000.2,0.05239812]
[1734410224991,0.02986123,4000.6,4000.0,0.12662777]
[1734410225296,0.70468032,4000.6,4000.0,0.12662777]
[1734410225463,0.02986123,4000.6,4000.1,0.05241148]
[1734410226098,0.02986123,4000.6,4000.2,0.05239812]
[1734410226402,0.7609,4000.3,3999.4,1.04117344]
[1734410226551,6.26701817,4000.2,3999.3,4.16514285]
[1734410226912,6.26701817,4000.2,3999.3,1.16514285]
[1734410228325,5.95742962,4000.1,3999.3,1.16514285]
[1734410228582,5.95742962,4000.1,3999.5,1.04117344]
[1734410228706,5.95742962,4000.1,3999.7,1.59117344]
[1734410229923,5.95742962,4000.1,3999.7,0.55]
[1734410230125,5.95742962,4000.1,3999.7,1.59117344]
[1734410230325,0.7609,4000.9,4000.0,1.59117344]
[1734410230526,0.7609,4000.9,4000.2,0.55]
[1734410230709,4.40010923,4001.2,4000.2,1.59117344]
[1734410230910,5.16100923,4001.2,4000.4,0.55]
[1734410231672,5.16100923,4001.2,4000.5,0.05273013]
[1734410232667,5.16100923,4001.2,4000.5,1.09390357]
[1734410233340,0.7609,4001.5,4000.6,0.55]
[1734410233579,0.7609,4001.5,4000.6,4.64329701]
[1734410233722,0.7609,4001.5,4000.8,0.55]
[1734410234078,0.7609,4001.5,4000.9,0.0520031]
[1734410234381,2.33498553,4001.3,4000.9,0.0520031]
[1734410234578,0.7609,4001.1,4000.9,0.0520031]
[1734410234740,0.7609,4000.9,3999.9,1.04117344]
[1734410234939,0.79076123,4000.9,3999.8,0.8325]
[1734410235161,0.7609,4000.8,4000.0,0.05037046]
[1734410235339,0.78244683,4000.7,3999.9,0.05038381]
[1734410235537,0.78244683,4000.7,3999.5,0.8325]
[1734410235823,0.7525856,4000.7,3999.5,0.8325]
[1734410236064,0.7525856,4000.7,3999.6,0.05057957]
[1734410236234,0.7609,4000.8,3999.7,1.04117344]
[1734410236438,0.7609,4000.8,3999.8,1.09185688]
[1734410236662,0.7609,4000.8,4000.5,3.0]
[1734410236965,1.27700092,4000.8,4000.0,0.55]
[1734410237166,0.02986123,4000.7,4000.6,0.05057662]
[1734410237373,0.02986123,4000.7,4000.0,0.55]
[1734410237537,0.7609,4000.8,4000.6,0.05057662]
[1734410237875,0.7609,4000.8,3999.9,0.55]
[1734410238180,0.7609,4000.8,4000.7,0.05059843]
[1734410238488,0.7609,4001.1,4000.7,0.05059843]
[1734410238653,0.7609,4001.1,4000.3,1.04117344]
[1734410238836,0.7609,4001.1,4000.8,0.05058508]
[1734410239027,0.7609,4001.1,4000.3,1.59117344]
[1734410239226,0.7609,4001.1,4000.4,0.05063848]
[1734410243478,1.27700092,4001.1,4000.4,0.05063848]
[1734410243684,0.02986123,4001.0,4000.2,0.12340841]
[1734410243828,0.02986123,4001.0,4000.5,0.05028358]
[1734410243829,0.7609,4000.8,4000.5,0.05028358]
[1734410244024,0.78244683,4000.7,3999.8,0.55]
[1734410244228,0.78244683,4000.7,4000.0,0.55]
[1734410244481,0.78244683,4000.7,4000.1,0.05033698]
[1734410244639,0.82784416,4000.6,3999.7,1.87367344]
[1734410244834,0.02986123,4000.5,3999.8,0.04876737]
[1734410246026,0.752,4000.4,3999.8,0.04876737]
[1734410246382,4.42997046,4000.3,3999.3,1.16415583]
[1734410246586,4.42997046,4000.3,3999.9,0.04709808]
[1734410246587,2.33498553,4000.1,3999.9,0.04709808]
[1734410246765,4.42997046,4000.0,3999.1,1.85767344]
[1734410247082,4.42997046,4000.0,3999.2,0.04741341]
[1734410248027,4.40010923,4000.0,3999.2,0.04741341]
[1734410248377,4.40010923,4000.0,3999.2,0.1751974]
[1734410249378,4.40010923,4000.0,3999.8,3.0]
[1734410249582,5.14881871,4000.0,3999.2,0.1751974]
[1734410249735,5.17867994,4000.0,3999.9,0.04730601]
[1734410249936,5.17867994,4000.0,3999.2,0.12778399]
[1734410250244,5.17867994,4000.0,3999.8,3.0]
[1734410250440,5.14881871,4000.0,3999.9,0.04748693]
[1734410250644,5.14881871,4000.0,3999.2,0.12778399]
[1734410250864,5.14881871,4000.0,3999.8,3.0]
[1734410251256,5.14881871,4000.0,3999.9,0.04750201]
[1734410251714,5.90081871,4000.0,3999.9,0.04750201]
[1734410253218,5.90081871,4000.0,3999.2,0.12778399]
[1734410253372,5.15210923,4000.0,3999.9,0.04748191]
[1734410253575,5.15210923,4000.0,3999.2,0.12778399]
[1734410253899,5.15210923,4000.0,3999.3,0.04755198]
[1734410254958,5.15210923,4000.0,3999.8,3.0]
[1734410255311,0.752,4000.0,3999.9,0.04747186]
[1734410255620,0.752,4000.0,3999.2,0.12778399]
[1734410255901,0.752,4000.0,3999.3,0.04755198]
[1734410256114,0.752,4000.3,3999.8,3.0]
[1734410256296,0.752,4000.3,3999.4,0.59810136]
[1734410256467,0.752,4000.3,3999.9,0.04797428]
[1734410256667,0.752,4000.3,3999.3,0.55]
[1734410257095,0.752,4000.3,3999.5,0.55]
[1734410257609,0.752,4000.3,3999.6,0.04801434]
[1734410260164,0.02986123,4000.2,3999.6,0.04801434]
[1734410260365,0.752,4000.3,3999.6,0.04801434]
[1734410260881,0.752,4000.3,3999.7,0.04788541]
[1734410261097,0.752,4000.3,3999.2,0.94428399]
[1734410261292,5.15210923,4000.3,3999.8,0.04787206]
[1734410261492,4.91532015,4000.2,3999.2,1.06758288]
[1734410261860,4.91532015,4000.2,3999.3,0.04793883]
[1734410262067,4.40010923,4000.2,3999.3,0.04793883]
[1734410262431,4.40010923,4000.2,3999.8,3.0]
[1734410262567,4.40010923,4000.2,3999.3,0.04793883]
[1734410262915,0.752,4000.1,3999.2,0.12329889]
[1734410263079,0.752,4000.1,3999.8,3.0]
[1734410263278,0.752,4000.1,3999.3,0.047974]
[1734410263485,0.752,4000.1,3999.1,0.25526988]
[1734410263666,0.752,4000.1,3999.8,3.0]
[1734410264010,1.27019705,4000.1,3999.1,0.37830558]
[1734410264215,1.27019705,4000.1,3999.9,0.04798433]
[1734410264513,1.27019705,4000.1,3999.1,0.37830558]
[1734410264821,5.67030628,4000.1,4000.0,0.04797098]
[1734410264994,4.40010923,4000.0,3999.1,0.37830558]
[1734410265163,0.02986123,3999.9,3998.9,0.8165]
[1734410265366,1.4373956,3999.8,3999.6,3.0]
[1734410265867,1.4373956,3999.8,3999.7,0.04798591]
[1734410266083,1.4373956,3999.8,3998.8,0.12218351]
[1734410266084,0.7609,3999.7,3998.8,0.12218351]
[1734410266286,2.33498553,3999.4,3998.8,0.12218351]
[1734410266820,2.33498553,3999.4,3998.5,0.8359]
[1734410267174,2.33498553,3999.4,3998.6,0.04631395]
[1734410267676,2.33498553,3999.4,3999.1,3.0]
[1734410267883,0.7609,3999.3,3999.1,3.0]
[1734410268222,0.7609,3999.3,3999.2,0.04652029]
[1734410268370,0.79076123,3999.3,3999.2,0.04652029]
[1734410268718,0.79076123,3999.3,3998.5,0.8359]
[1734410268937,0.7609,3999.3,3998.5,0.8359]
[1734410269146,0.7609,3999.3,3998.6,0.04660043]
[1734410269425,0.02986123,3999.2,3998.6,0.04660043]
[1734410269576,0.02986123,3999.2,3999.1,3.0]
[1734410269771,5.16100923,3999.3,3999.1,3.0]
[1734410269978,5.16100923,3999.3,3999.1,3.04653365]
[1734410271128,0.7609,3998.9,3998.5,0.005]
[1734410271420,2.33498553,3998.6,3998.5,0.005]
[1734410271793,3.09588553,3998.6,3998.5,0.005]
[1734410272004,0.7609,3998.6,3998.5,0.005]
[1734410272982,0.7609,3998.9,3998.5,0.005]
[1734410273183,0.7609,3998.9,3998.6,3.0]
[1734410273422,1.27700092,3998.9,3998.6,3.0]
[1734410273756,1.27700092,3998.9,3998.5,0.005]
[1734410273931,1.30686215,3998.9,3998.5,0.005]
[1734410274079,1.27700092,3998.9,3998.6,3.0]
[1734410274278,1.27700092,3998.9,3998.5,0.005]
[1734410274505,1.27700092,3998.9,3998.6,3.0]
[1734410274506,0.80120957,3998.8,3998.6,3.0]
[1734410274922,0.80120957,3998.8,3998.5,0.005]
[1734410275124,0.80120957,3998.8,3998.6,3.0]
[1734410275912,0.80120957,3998.8,3998.5,0.005]
[1734410276112,0.88133052,3998.7,3998.6,3.0]
[1734410276314,4.40010923,3998.6,3998.5,0.005]
[1734410279531,4.42997046,3998.6,3998.5,0.005]
[1734410279898,4.40010923,3998.6,3998.5,0.005]
[1734410280232,4.97080637,3998.6,3998.5,0.005]
[1734410281354,4.40010923,3998.6,3998.5,0.04027987]
[1734410281856,5.15050923,3998.6,3998.5,0.005]
[1734410282153,5.15050923,3998.6,3998.5,0.03918207]
[1734410282508,5.18037046,3998.6,3998.5,0.005]
[1734410282744,5.72015637,3998.6,3998.5,0.03918207]
[1734410282944,5.72015637,3998.6,3998.5,0.005]
[1734410283255,5.72015637,3998.6,3998.5,0.03918207]
[1734410283459,5.72015637,3998.6,3998.5,0.005]
[1734410283779,8.0551419,3998.6,3998.5,0.005]
[1734410284112,8.0551419,3998.6,3998.5,0.03918207]
[1734410284857,8.0551419,3998.6,3998.5,0.005]
[1734410285213,8.0551419,3998.6,3998.5,0.03342803]
[1734410285411,4.3666812,3998.2,3996.2,0.8214]
[1734410285656,0.7504,3997.5,3996.2,0.8214]
[1734410285957,4.39654243,3997.4,3996.2,0.8214]
[1734410286161,0.7481928,3997.3,3996.2,0.8214]
[1734410286461,0.78026123,3997.2,3996.2,0.8214]
[1734410287011,0.78026123,3997.2,3995.6,1.04117344]
[1734410287211,4.3666812,3997.1,3995.6,0.8214]
[1734410287456,0.7504,3996.9,3995.6,0.8214]
[1734410288358,0.7504,3996.9,3995.2,1.04117344]
[1734410288359,7.24170366,3996.9,3995.2,0.8214]
[1734410288560,8.71049757,3996.9,3995.2,0.8214]
[1734410288759,6.58587511,3996.9,3995.2,0.8214]
[1734410289134,6.58587511,3996.9,3995.2,1.86257344]
[1734410289861,6.58587511,3996.9,3995.3,1.04117344]
[1734410290065,6.58587511,3996.9,3995.2,1.86257344]
[1734410290273,6.58587511,3996.9,3995.5,0.12381941]
[1734410290559,6.58587511,3996.9,3996.0,3.0]
[1734410290760,6.58587511,3996.9,3995.5,0.12381941]
[1734410290930,6.58587511,3996.9,3995.2,0.8214]
[1734410291367,6.58587511,3996.9,3995.3,0.1250364]
[1734410291524,6.58587511,3996.9,3996.0,3.0]
[1734410291866,6.58587511,3996.9,3995.0,0.12188903]
[1734410292074,2.33498553,3996.2,3994.9,0.8214]
[1734410292235,4.3666812,3996.0,3994.9,0.8214]
[1734410293023,7.45206673,3995.8,3994.4,0.12494858]
[1734410293226,6.70166673,3995.4,3993.6,0.28667496]
[1734410293462,6.70166673,3995.4,3993.4,0.12412929]
[1734410293463,4.3666812,3995.4,3994.1,0.8214]
[1734410293673,4.3666812,3995.6,3994.1,0.84643413]
[1734410293976,4.3666812,3995.6,3994.1,1.05525304]
[1734410294180,4.3666812,3995.6,3994.2,0.03201518]
[1734410294483,4.80334932,3995.6,3994.1,0.8214]
[1734410294772,0.43666812,3995.6,3994.2,0.58201518]
[1734410295169,0.43666812,3995.6,3995.3,3.0]
[1734410295348,4.3666812,3995.9,3995.3,3.0]
[1734410295546,4.3666812,3995.9,3995.4,0.03185451]
[1734410295867,4.3666812,3995.9,3995.3,3.0]
[1734410296174,0.51170812,3995.8,3995.4,0.03185451]
[1734410296374,0.51170812,3995.8,3995.5,3.0]
[1734410296679,0.51170812,3995.8,3995.5,3.03184112]
[1734410296977,4.3666812,3995.8,3995.5,3.03184112]
[1734410297181,4.3666812,3995.8,3995.5,0.03184112]
[1734410297346,4.3666812,3995.8,3995.6,3.0]
[1734410297561,4.3666812,3995.8,3995.6,3.03183278]
[1734410299380,4.3666812,3995.8,3995.6,0.03183278]
[1734410299579,4.3666812,3995.8,3995.6,3.0]
[1734410299730,4.3666812,3995.8,3995.7,0.03163824]
[1734410300251,4.3666812,3995.8,3995.1,0.7836]
[1734410300562,4.3666812,3996.3,3995.1,0.7836]
[1734410300761,4.3666812,3996.3,3996.0,3.0]
[1734410301172,4.3666812,3996.3,3996.1,0.03181129]
[1734410301370,4.3666812,3996.3,3996.0,3.0]
[1734410301569,4.3666812,3996.6,3996.2,0.03179792]
[1734410301752,4.3666812,3996.6,3996.4,3.0]
[1734410302281,4.3666812,3996.6,3996.5,0.03156141]
[1734410302844,4.3666812,3996.6,3996.0,0.7836]
[1734410303071,4.3666812,3996.6,3996.5,0.03146072]
[1734410303276,4.3666812,3996.6,3996.4,3.0]
[1734410303488,4.3666812,3996.6,3996.5,3.0]
[1734410303778,4.3666812,3996.6,3996.5,3.03146072]
[1734410303987,4.3666812,3996.6,3996.5,0.03146072]
[1734410304299,4.3666812,3996.6,3996.5,3.0]
[1734410304466,4.3666812,3996.6,3996.0,0.7836]
[1734410304674,4.3666812,3996.6,3996.5,3.03140031]
[1734410304884,0.7517,3996.5,3995.4,0.7836]
[1734410305045,0.7517,3996.5,3996.3,3.0]
[1734410305561,4.80334932,3996.6,3995.4,0.7836]
[1734410305759,4.80334932,3996.6,3996.3,3.0]
[1734410306509,4.3666812,3996.5,3996.3,3.0]
[1734410306847,4.3666812,3996.5,3996.4,0.03136334]
[1734410307053,5.15867081,3996.5,3996.4,0.03136334]
[1734410307479,5.15867081,3996.5,3996.3,3.0]
[1734410307682,4.3666812,3996.5,3996.4,0.03136334]
[1734410308550,4.3666812,3996.5,3996.3,3.0]
[1734410308784,4.3666812,3996.5,3996.4,0.03143382]
[1734410309399,3.08668553,3996.8,3996.4,0.03143382]
[1734410309400,4.3666812,3996.7,3996.4,3.0]
[1734410309599,4.3666812,3996.7,3996.5,0.03146072]
[1734410310010,4.3666812,3996.7,3996.5,3.0]
[1734410310319,4.3666812,3996.7,3996.2,0.7836]
[1734410310509,4.3666812,3996.7,3996.6,0.03140204]
[1734410310654,4.3666812,3996.7,3996.2,0.7836]
[1734410311058,4.3666812,3996.7,3996.6,3.0]
[1734410311292,4.3666812,3996.7,3996.2,0.7836]
[1734410311644,4.3666812,3996.7,3996.2,0.92325898]
[1734410311903,4.3666812,3996.7,3996.3,0.03093872]
[1734410312606,4.3666812,3997.3,3996.3,0.03093872]
[1734410312805,4.3666812,3997.3,3996.2,0.7836]
[1734410313004,4.3666812,3997.3,3996.8,3.0]
[1734410313216,0.51183812,3997.2,3996.9,0.03090877]
[1734410314053,0.51183812,3997.2,3996.8,3.0]
[1734410314422,0.51183812,3997.2,3996.9,0.03090877]
[1734410315604,4.3666812,3997.1,3996.9,0.03090877]
[1734410315754,4.3666812,3997.1,3996.8,3.0]
[1734410316101,4.3666812,3997.1,3996.9,0.03090877]
[1734410316554,5.08803169,3997.1,3996.9,0.03090877]
[1734410317118,4.3666812,3997.1,3996.9,0.03090877]
[1734410317253,4.3666812,3997.1,3997.0,3.0]
[1734410317455,4.3666812,3997.1,3996.9,0.03090877]
[1734410317659,4.3666812,3997.1,3997.0,0.0308954]
[1734410317858,4.3666812,3997.4,3996.9,0.7836]
[1734410318098,0.7517,3997.8,3996.9,0.7836]
[1734410318099,4.3666812,3997.6,3997.3,3.0]
[1734410318302,4.3666812,3997.6,3996.9,0.7836]
[1734410318466,4.3666812,3997.6,3997.4,0.03069092]
[1734410318661,4.3666812,3997.6,3996.9,0.7836]
[1734410318662,0.51183812,3997.5,3997.3,3.0]
[1734410318864,4.3666812,3997.6,3996.9,0.7836]
[1734410319081,4.3666812,3997.6,3997.4,0.03069092]
[1734410319315,4.3666812,3997.6,3996.9,0.7836]
[1734410319743,5.1183812,3998.4,3996.9,0.7836]
[1734410319956,5.35486588,3998.4,3997.0,0.03043744]
[1734410321342,5.35486588,3998.4,3997.1,0.7836]
[1734410321641,5.35486588,3998.4,3997.2,0.03013548]
[1734410321803,0.77197126,3998.3,3997.2,0.03013548]
[1734410322134,0.77197126,3998.3,3997.1,0.7836]
[1734410322339,4.3666812,3998.4,3998.0,3.0]
[1734410322635,0.7517,3998.7,3998.1,0.0293912]
[1734410322636,4.3666812,3998.3,3998.1,0.0293912]
[1734410323002,4.3666812,3998.3,3997.9,0.7836]
[1734410323202,4.80334932,3998.3,3997.9,0.7836]
[1734410323404,2.33498553,3999.0,3997.9,0.7836]
[1734410323405,4.3666812,3998.6,3997.9,0.7836]
[1734410323722,0.7517,3999.0,3997.9,0.7836]
[1734410323920,4.3666812,3999.5,3997.9,0.7836]
[1734410323921,0.7517,3999.3,3998.7,3.0]
[1734410324129,4.3666812,3999.3,3998.7,3.0]
[1734410324327,4.3666812,3999.7,3998.8,0.0291719]
[1734410324527,0.51275812,3999.6,3999.3,3.0]
[1734410324725,0.51275812,3999.6,3998.6,0.7836]
[1734410324894,4.3666812,3999.7,3999.4,0.02893577]
[1734410325087,4.3666812,4000.0,3998.6,0.7836]
[1734410325287,0.7609,4000.1,3998.6,0.7836]
[1734410325288,4.3666812,3999.9,3999.3,3.0]
[1734410325524,4.3666812,3999.9,3998.6,0.7836]
[1734410325525,4.3666812,4000.4,3999.8,3.0]
[1734410325790,4.3666812,4000.0,3999.9,0.02730499]
[1734410326033,4.3666812,4000.2,3999.8,3.0]
[1734410326236,4.3666812,4000.2,3999.4,0.8035]
[1734410326392,4.3666812,4000.4,3999.8,3.0]
[1734410326596,0.51275812,4000.3,3999.4,0.8035]
[1734410326798,0.51275812,4000.3,4000.1,3.0]
[1734410327018,0.51275812,4000.3,4000.2,0.02706387]
[1734410327417,0.54261935,4000.3,3999.4,0.8035]
[1734410327612,0.48794393,4000.2,3999.4,0.8035]
[1734410327841,0.02986123,4000.1,3999.4,0.8035]
[1734410329847,0.48794393,4000.2,4000.1,3.0]
[1734410330213,0.48794393,4000.2,4000.1,3.02673548]
[1734410330610,0.48794393,4000.2,4000.1,0.02673548]
[1734410330811,0.48794393,4000.2,3999.4,0.8035]
[1734410331386,4.3666812,4000.3,4000.1,3.0]
[1734410331502,4.3666812,4000.0,3999.0,0.92583365]
[1734410333251,4.3666812,4000.0,3999.6,3.0]
[1734410333605,4.3666812,4000.0,3999.0,0.92583365]
[1734410333966,4.3666812,4000.0,3999.6,3.0]
[1734410334288,4.3666812,4000.0,3999.7,3.0]
[1734410334978,4.3666812,4000.0,3999.0,0.92583365]
[1734410335133,4.3666812,4000.1,3999.9,3.0]
[1734410335331,4.3666812,4000.0,3999.9,3.0]
[1734410335559,4.87943932,4000.0,3999.9,3.0]
[1734410335940,0.51275812,4000.0,3999.9,3.0]
[1734410336145,4.87943932,4000.0,3999.9,3.0]
[1734410336623,4.87943932,4000.0,3999.9,0.02594564]
[1734410336828,4.87943932,4000.0,3999.9,3.02594564]
[1734410337023,4.87943932,4000.0,3999.9,0.02594564]
[1734410337267,0.51275812,4000.0,3999.0,1.05186541]
[1734410337765,4.3666812,4000.1,3999.1,0.02605247]
[1734410339071,4.3666812,4000.0,3999.9,3.0]
[1734410339255,4.3666812,4000.1,3999.1,0.02605247]
[1734410339461,4.3666812,4000.4,4000.0,3.0]
[1734410339828,4.3666812,4000.4,4000.1,0.02527544]
[1734410340336,0.02986123,4000.3,4000.1,0.02527544]
[1734410340757,0.02986123,4000.3,4000.0,3.0]
[1734410341026,0.51574424,4000.2,4000.1,0.02505432]
[1734410341230,1.27664424,4000.2,4000.1,0.02505432]
[1734410341434,1.27664424,4000.2,4000.0,3.0]
[1734410341758,0.56731867,4000.1,4000.0,3.0]
[1734410342472,4.3666812,4000.0,3999.2,0.7517]
[1734410343926,4.3666812,3999.9,3999.0,0.12233365]
[1734410346578,4.3666812,3999.9,3999.1,0.7921]
[1734410347080,4.3666812,3999.9,3999.2,0.02528505]
[1734410347447,4.3666812,3999.9,3999.1,0.7921]
[1734410348686,0.753,4000.5,3999.1,0.7921]
[1734410348687,4.3666812,4000.3,4000.0,3.0]
[1734410348981,4.87864932,4000.3,4000.0,3.0]
[1734410349142,4.87864932,4000.3,4000.1,0.02521008]
[1734410349472,4.3666812,4000.3,4000.1,0.02521008]
[1734410350178,4.3666812,4000.3,4000.0,3.0]
[1734410350480,4.3666812,4000.3,4000.1,0.02503924]
[1734410351647,0.25,4002.3,4000.1,0.02503924]
[1734410351648,4.3666812,4000.9,4000.1,0.02503924]
[1734410351847,4.3666812,4000.9,3999.8,0.7921]